bitfinex/quotes_ETHUSD_20240916
["timestamp","ask_amount","ask_price","bid_price","bid_amount"]
[1726517582323,18.94198,2289.5,2289.4,0.0384027]
[1726517582783,23.30974,2289.5,2289.4,0.0384027]
[1726517583346,23.30974,2289.5,2288.7,0.0384027]
[1726517583347,18.4802,2288.8,2288.7,0.0384027]
[1726517584055,23.3993,2288.8,2288.7,0.0384027]
[1726517584902,27.7684,2288.8,2288.7,0.0384027]
[1726517585339,23.3993,2288.8,2288.7,0.0384027]
[1726517586149,18.4802,2288.8,2288.7,0.0384027]
[1726517586646,20.14645842,2288.8,2288.7,0.0384027]
[1726517587648,15.77735842,2288.8,2288.7,0.0384027]
[1726517588032,11.7382,2288.8,2288.7,0.0384027]
[1726517588239,4.3691,2288.8,2288.7,0.0384027]
[1726517588419,8.7382,2288.8,2288.7,0.1678567]
[1726517588838,8.7382,2288.8,2288.7,0.0384027]
[1726517589022,9.61202,2288.8,2288.7,0.0384027]
[1726517589225,13.98112,2288.8,2288.7,0.0384027]
[1726517589637,24.17052,2288.8,2288.7,0.0384027]
[1726517589847,19.80142,2288.8,2288.7,0.0384027]
[1726517590018,24.17052,2288.8,2288.7,0.0384027]
[1726517590957,19.80142,2288.8,2288.7,0.0384027]
[1726517591457,19.25142,2288.8,2288.7,0.0384027]
[1726517592326,24.17052,2288.8,2288.7,0.0384027]
[1726517592525,19.80142,2288.8,2288.7,0.0384027]
[1726517592921,24.17052,2288.8,2288.7,0.0384027]
[1726517595825,31.52962,2288.8,2288.7,0.0384027]
[1726517596448,27.16052,2288.8,2288.7,0.0384027]
[1726517598042,31.52962,2288.8,2288.7,0.0384027]
[1726517598247,31.52962,2288.8,2288.0,0.0384027]
[1726517598249,15.36199,2288.1,2288.0,0.0384027]
[1726517598456,20.20501551,2288.1,2288.0,0.0384027]
[1726517598642,27.57544551,2288.1,2288.0,0.0384027]
[1726517598856,28.12544551,2288.1,2288.0,0.0384027]
[1726517599058,28.12544551,2288.1,2287.8,7.1]
[1726517599059,21.8541,2287.9,2287.8,7.1]
[1726517599244,27.6548,2287.9,2287.8,7.1]
[1726517599754,27.6548,2287.9,2287.8,7.05614597]
[1726517600074,18.36316,2287.9,2287.8,7.05614597]
[1726517601675,11.74164,2287.9,2287.8,7.01614597]
[1726517602879,8.74164,2287.9,2287.8,7.01614597]
[1726517604139,11.74164,2287.9,2287.8,7.01614597]
[1726517604839,11.74164,2287.9,2287.8,7.14748176]
[1726517604840,13.83715155,2287.9,2287.8,7.14748176]
[1726517605337,20.57847155,2287.9,2287.8,7.01614597]
[1726517605537,16.20765155,2287.9,2287.8,7.01614597]
[1726517605734,20.57847155,2287.9,2287.8,7.01614597]
[1726517606738,11.74164,2287.9,2287.8,7.01614597]
[1726517607148,11.74164,2287.9,2287.8,7.14810289]
[1726517607459,7.37082,2287.9,2287.8,7.14810289]
[1726517607663,3.0,2287.9,2287.8,7.14810289]
[1726517607883,7.37082,2287.9,2287.8,7.14810289]
[1726517608081,11.74164,2287.9,2287.8,7.14810289]
[1726517608419,7.37082,2287.9,2287.8,7.14810289]
[1726517608559,11.74164,2287.9,2287.8,7.14810289]
[1726517609794,11.74164,2287.9,2287.8,7.10425236]
[1726517610607,11.74164,2287.9,2287.8,7.05425236]
[1726517611227,7.37082,2287.9,2287.8,7.05425236]
[1726517611900,7.37082,2287.9,2287.8,6.73092694]
[1726517612082,7.37082,2287.9,2287.8,6.85373278]
[1726517613136,4.37036,2288.2,2287.8,6.85373278]
[1726517613295,3.0,2288.2,2287.9,2.2606]
[1726517613489,7.37027,2288.2,2287.9,2.2606]
[1726517613698,7.37027,2288.2,2288.0,0.12252181]
[1726517614032,7.37054,2288.1,2288.0,0.12252181]
[1726517615005,7.37043,2288.1,2288.0,0.12252181]
[1726517615210,7.4,2288.5,2288.1,2.4402]
[1726517615393,7.4,2288.5,2288.1,6.81053]
[1726517615706,11.76969,2288.5,2288.2,0.12215538]
[1726517617228,4.3699,2288.4,2288.2,0.12215538]
[1726517617424,11.76969,2288.5,2288.2,0.12215538]
[1726517617938,19.8,2289.0,2288.4,2.4402]
[1726517618116,19.8,2289.0,2288.4,6.81004]
[1726517618117,4.3691,2288.8,2288.4,6.81004]
[1726517618318,4.3691,2288.8,2288.5,0.12115241]
[1726517618811,8.73829,2288.8,2288.5,0.12115241]
[1726517619020,4.3691,2288.8,2288.5,0.12115241]
[1726517620511,4.36946,2288.7,2288.5,0.12115241]
[1726517620827,4.36946,2288.7,2287.5,7.37141]
[1726517620828,4.36948,2288.6,2288.1,4.37033]
[1726517621028,9.64906551,2288.8,2288.2,2.7371]
[1726517621219,4.36971,2288.5,2288.2,2.85842007]
[1726517621418,4.36987,2288.4,2288.2,2.85842007]
[1726517621750,5.287065,2288.6,2288.2,2.85842007]
[1726517621910,4.36948,2288.6,2288.2,2.85842007]
[1726517623246,8.73884,2288.7,2288.2,7.22857007]
[1726517623500,4.36938,2288.7,2288.2,7.22857007]
[1726517623658,4.36957,2288.6,2288.2,2.85842007]
[1726517624910,4.36967,2288.5,2288.2,2.85842007]
[1726517625197,8.73918,2288.6,2288.2,2.85842007]
[1726517625517,8.73917,2288.6,2288.2,2.85842007]
[1726517625679,8.73915,2288.6,2288.2,2.85842007]
[1726517625867,4.36957,2288.6,2288.2,7.22865007]
[1726517627719,8.73919,2288.6,2288.2,7.22865007]
[1726517628017,4.36957,2288.6,2288.2,7.22865007]
[1726517628377,4.36957,2288.6,2288.2,2.85842007]
[1726517628577,4.36968,2288.5,2288.2,2.85842007]
[1726517631117,4.36966,2288.6,2288.2,2.85842007]
[1726517631609,4.36968,2288.5,2288.2,2.85842007]
[1726517632497,4.36966,2288.6,2288.2,2.85842007]
[1726517632498,4.36994,2288.4,2288.2,2.85842007]
[1726517632700,4.3697,2288.5,2288.2,2.85842007]
[1726517632921,10.43659806,2288.8,2288.2,2.85842007]
[1726517632922,6.06732806,2288.8,2288.2,2.85842007]
[1726517633216,4.36966,2288.6,2288.2,7.22864007]
[1726517634116,4.36966,2288.6,2288.2,2.85842007]
[1726517634117,4.36968,2288.5,2288.2,2.85842007]
[1726517635281,8.7401,2288.3,2288.2,2.85842007]
[1726517635590,4.37005,2288.3,2288.2,2.85842007]
[1726517636608,8.7401,2288.3,2288.2,0.12132007]
[1726517636792,10.08662951,2288.5,2287.9,2.7954]
[1726517636793,4.37059,2288.1,2287.9,2.7954]
[1726517636996,4.37059,2288.1,2288.0,0.12153806]
[1726517637397,8.74118,2288.1,2288.0,0.12153806]
[1726517639115,4.37081,2288.0,2287.8,6.54092694]
[1726517639487,4.37082,2287.9,2287.8,6.54092694]
[1726517641402,8.74154,2288.0,2287.8,6.54092694]
[1726517641595,4.37073,2288.0,2287.8,6.54092694]
[1726517641929,4.37082,2287.9,2287.8,6.54092694]
[1726517642733,8.74164,2287.9,2287.8,6.54092694]
[1726517642932,13.58466551,2287.9,2287.8,6.54092694]
[1726517644022,12.68708028,2287.9,2287.8,6.54092694]
[1726517647223,12.68708028,2287.9,2287.8,6.6632985]
[1726517647558,8.31626028,2287.9,2287.8,6.6632985]
[1726517647865,12.68708028,2287.9,2287.8,6.6632985]
[1726517648031,9.98483946,2287.9,2287.8,6.6632985]
[1726517648748,14.35565946,2287.9,2287.8,6.6632985]
[1726517653236,12.68708028,2287.9,2287.8,6.6632985]
[1726517655947,21.25338028,2287.9,2287.8,6.6632985]
[1726517656165,27.44227596,2287.9,2287.8,6.54092694]
[1726517656463,32.82081379,2287.9,2287.8,6.54092694]
[1726517656669,12.68898028,2287.4,2287.3,0.0375123]
[1726517656821,17.06075028,2287.4,2287.3,0.3175123]
[1726517658640,8.74354,2287.4,2287.3,0.3175123]
[1726517659037,8.74354,2287.4,2287.3,3.0958123]
[1726517659038,4.37177,2287.4,2287.3,3.0958123]
[1726517659367,4.37168,2287.5,2287.3,3.52432056]
[1726517659875,1.36537218,2287.9,2287.4,2.7783]
[1726517660082,5.73589218,2288.1,2287.6,2.7783]
[1726517660233,5.73589218,2288.1,2287.7,7.14947]
[1726517660234,4.37052,2288.1,2287.7,7.14947]
[1726517660572,4.37052,2288.1,2287.8,0.11835421]
[1726517661065,4.37052,2288.1,2287.7,7.1563365]
[1726517661271,1.36537218,2288.3,2287.8,0.11835421]
[1726517661431,4.37082,2287.9,2287.8,0.11835421]
[1726517661628,4.37082,2287.9,2287.7,2.7851665]
[1726517661827,8.74118,2288.1,2287.8,0.11835421]
[1726517662038,4.37072,2288.0,2287.8,0.11835421]
[1726517662252,4.37072,2288.0,2287.7,2.7851665]
[1726517662253,8.74145,2288.0,2287.7,2.7851665]
[1726517662470,4.37072,2288.0,2287.8,0.11835421]
[1726517662828,4.37072,2288.0,2287.7,2.7851665]
[1726517663050,4.37072,2288.0,2287.9,0.11823968]
[1726517663267,4.37072,2288.0,2287.8,0.11835421]
[1726517663568,4.37072,2288.0,2287.9,0.11823968]
[1726517663924,4.37072,2288.0,2287.9,0.11307764]
[1726517664130,9.75208322,2288.0,2287.9,0.11307764]
[1726517664326,8.74143,2288.0,2287.9,0.11994414]
[1726517664565,8.74143,2288.0,2287.9,0.0068665]
[1726517666672,11.74143,2288.0,2287.9,0.0068665]
[1726517666828,19.69548609,2288.0,2287.9,0.0068665]
[1726517667027,20.14963613,2288.0,2287.9,0.0068665]
[1726517667257,30.63124613,2288.0,2287.9,0.0068665]
[1726517667473,36.19747137,2288.0,2287.9,0.0068665]
[1726517667630,33.46789582,2288.0,2287.9,0.0068665]
[1726517668269,36.19740456,2288.0,2287.9,0.0068665]
[1726517668509,33.46789582,2288.0,2287.9,0.0068665]
[1726517668975,35.45679404,2288.0,2287.9,0.0068665]
[1726517673094,26.16536404,2288.0,2287.9,0.0068665]
[1726517673271,23.13941082,2288.0,2287.9,0.0068665]
[1726517674281,28.03419984,2288.0,2287.9,0.0068665]
[1726517674640,28.58410984,2288.0,2287.9,0.0068665]
[1726517675071,24.21339984,2288.0,2287.9,0.0068665]
[1726517675244,23.66339984,2288.0,2287.9,0.0068665]
[1726517675450,25.93845876,2288.0,2287.9,0.0068665]
[1726517677242,23.66339984,2288.0,2287.9,0.0068665]
[1726517677442,23.14035865,2288.0,2287.9,0.0068665]
[1726517677842,20.86479984,2288.0,2287.9,0.0068665]
[1726517678082,23.14034031,2288.0,2287.9,0.0068665]
[1726517678256,20.86479984,2288.0,2287.9,0.0068665]
[1726517678979,18.77013132,2288.0,2287.9,0.0068665]
[1726517679180,16.55210672,2288.0,2287.9,0.0068665]
[1726517679477,17.00728148,2288.0,2287.9,0.12533964]
[1726517679686,16.55258826,2288.0,2287.9,0.12533964]
[1726517679906,4.82134826,2288.0,2287.9,0.0068665]
[1726517680063,1.36601974,2288.0,2287.9,0.0068665]
[1726517680564,1.82134826,2288.1,2287.9,0.12533964]
[1726517680565,5.73650974,2288.1,2287.9,0.12533964]
[1726517680816,5.73650974,2288.1,2287.9,0.0068665]
[1726517681168,5.73650974,2288.1,2288.0,0.11835862]
[1726517681368,5.73650974,2288.1,2287.9,0.0068665]
[1726517681687,5.73650974,2288.1,2288.0,0.11835862]
[1726517683072,5.73650974,2288.1,2287.9,0.0068665]
[1726517684085,5.73650974,2288.1,2288.0,0.11797502]
[1726517686804,6.19183826,2288.1,2288.0,0.11797502]
[1726517687009,5.73763299,2288.1,2288.0,0.11797502]
[1726517688928,4.37049,2288.1,2288.0,0.11797502]
[1726517689112,5.73755369,2288.1,2288.0,0.11797502]
[1726517691488,6.19183826,2288.1,2288.0,0.11797502]
[1726517691690,5.73744859,2288.1,2288.0,0.11797502]
[1726517693226,10.10803859,2288.1,2288.0,0.11797502]
[1726517696016,10.56242826,2288.1,2288.0,0.11797502]
[1726517697133,16.65408462,2288.1,2288.0,0.11797502]
[1726517697305,8.74124,2288.0,2287.9,0.0068665]
[1726517697492,10.56351564,2288.0,2287.9,0.0068665]
[1726517698011,10.56351564,2288.0,2287.9,0.12466019]
[1726517698209,10.56351564,2288.0,2287.9,2.90596019]
[1726517698210,1.82227564,2288.0,2287.9,2.90596019]
[1726517698407,1.36675234,2288.1,2287.9,2.90596019]
[1726517698594,5.73719234,2288.1,2287.9,2.90596019]
[1726517698797,8.74124,2288.0,2287.9,2.90596019]
[1726517699002,10.10799234,2288.0,2287.9,0.0068665]
[1726517699193,10.10799234,2288.0,2287.9,0.12469306]
[1726517699194,10.56351564,2288.0,2287.9,0.12469306]
[1726517699525,24.14468913,2288.0,2287.9,0.0068665]
[1726517699731,21.86651379,2288.0,2287.9,0.0068665]
[1726517700719,21.12592781,2288.0,2287.9,0.0068665]
[1726517701519,35.3250005,2288.0,2287.9,0.0068665]
[1726517701689,45.50465855,2288.0,2287.9,0.0068665]
[1726517701895,46.26193435,2288.0,2287.9,0.0068665]
[1726517702087,39.50301561,2288.0,2287.9,0.0068665]
[1726517702355,42.69001576,2288.0,2287.9,0.0068665]
[1726517702518,40.39228824,2288.0,2287.9,0.0068665]
[1726517702718,35.77928824,2288.0,2287.9,0.0068665]
[1726517703574,24.27622781,2288.0,2287.9,0.0068665]
[1726517703724,27.00755506,2288.0,2287.9,0.0068665]
[1726517705017,28.22166809,2288.0,2287.9,0.0068665]
[1726517705657,24.27622781,2288.0,2287.9,0.0068665]
[1726517706229,13.75530781,2288.0,2287.9,0.0068665]
[1726517706439,11.73124,2288.0,2287.9,0.0068665]
[1726517706732,14.00773457,2288.0,2287.9,0.1253177]
[1726517706934,14.00773457,2288.0,2287.9,0.0068665]
[1726517707345,14.00773457,2288.0,2287.9,0.12524646]
[1726517707514,15.15739496,2288.0,2287.9,0.12524646]
[1726517707713,18.15739496,2288.0,2287.9,0.12524646]
[1726517708031,15.16739496,2288.0,2287.9,0.12524646]
[1726517708668,1.82178006,2288.0,2287.9,0.12524646]
[1726517708818,1.36643803,2288.0,2287.9,0.12524646]
[1726517709221,5.73689803,2288.1,2287.9,0.12524646]
[1726517709656,1.36643803,2288.1,2287.9,0.12524646]
[1726517709882,1.36643803,2288.1,2288.0,2.878]
[1726517710064,1.36643803,2288.2,2288.0,2.878]
[1726517710661,4.35643803,2288.3,2288.1,0.11794819]
[1726517710825,7.36007,2288.3,2288.1,0.11794819]
[1726517711020,4.35643803,2288.3,2288.1,0.11794819]
[1726517711234,1.36643803,2288.3,2288.1,0.11794819]
[1726517711472,1.36643803,2288.2,2288.1,0.11794819]
[1726517711771,4.37024,2288.2,2288.1,0.11794819]
[1726517712137,10.86276384,2288.2,2288.1,0.11794819]
[1726517712344,9.49632581,2288.2,2288.1,0.11794819]
[1726517712649,11.31810587,2288.2,2288.1,0.11794819]
[1726517713230,4.37044,2288.1,2287.9,0.0068665]
[1726517713447,5.73632598,2288.1,2287.9,0.0068665]
[1726517713682,10.10689598,2288.1,2287.9,0.0068665]
[1726517713882,1.36588598,2288.1,2287.9,0.0068665]
[1726517714399,1.36588598,2288.3,2288.0,7.27074]
[1726517714561,1.36588598,2288.4,2288.0,7.27074]
[1726517714982,5.73582598,2288.4,2288.0,7.27074]
[1726517715304,4.37008,2288.3,2288.0,2.9002]
[1726517716376,5.73596598,2288.3,2288.0,2.9002]
[1726517716900,4.37008,2288.3,2288.0,2.9002]
[1726517717264,5.73596598,2288.3,2288.0,2.9002]
[1726517717461,4.37033,2288.2,2288.0,2.9002]
[1726517717660,8.74068,2288.2,2288.0,2.9002]
[1726517717865,4.37043,2288.1,2288.0,2.9002]
[1726517719926,1.36588598,2288.2,2288.0,7.56144665]
[1726517720065,4.36989,2288.4,2288.2,2.976]
[1726517720563,5.73577598,2288.4,2288.2,2.976]
[1726517720766,10.10549598,2288.5,2288.2,2.976]
[1726517720966,10.10545598,2288.5,2288.2,2.976]
[1726517721167,4.36986,2288.4,2288.3,0.11705084]
[1726517721601,4.36986,2288.4,2288.2,2.976]
[1726517721800,4.36986,2288.4,2288.3,0.11705084]
[1726517722209,4.37005,2288.3,2288.2,2.976]
[1726517722409,4.37005,2288.3,2287.9,0.0068665]
[1726517722410,4.37028,2288.2,2288.0,2.7189]
[1726517722572,4.37043,2288.1,2288.0,2.7189]
[1726517723994,6.56742284,2288.3,2288.0,2.7189]
[1726517724216,6.56742284,2288.3,2288.0,2.83622864]
[1726517724378,4.37034,2288.2,2288.0,2.83622864]
[1726517724983,5.73597598,2288.3,2288.0,2.83622864]
[1726517725214,10.10615598,2288.3,2288.0,2.83622864]
[1726517725414,5.73597598,2288.3,2288.0,2.83622864]
[1726517725627,5.73597598,2288.3,2288.0,0.11732864]
[1726517725628,17.96317591,2288.1,2288.0,0.11732864]
[1726517725915,18.3881391,2288.1,2288.0,0.11732864]
[1726517726118,18.3881391,2288.1,2287.9,0.0068665]
[1726517726119,16.11186,2288.0,2287.9,0.0068665]
[1726517726301,24.23724701,2288.0,2287.9,0.0068665]
[1726517728231,24.23720709,2288.0,2287.9,0.0068665]
[1726517728384,2.99,2288.0,2287.9,0.0068665]
[1726517728588,2.99,2288.0,2287.9,2.7257665]
[1726517728589,4.35591764,2288.0,2287.9,2.7257665]
[1726517728891,2.99,2288.0,2287.9,2.7257665]
[1726517729104,2.99,2288.0,2287.9,2.83575159]
[1726517729517,5.73632764,2288.2,2287.9,3.51387078]
[1726517729518,1.36591764,2288.2,2287.9,3.51387078]
[1726517729879,5.73616764,2288.2,2287.9,3.51387078]
[1726517730319,10.10652764,2288.2,2287.9,2.83575159]
[1726517730513,4.37045,2288.1,2287.9,2.83575159]
[1726517730830,10.10715764,2288.0,2287.9,0.11685159]
[1726517730977,11.96469639,2288.0,2287.9,0.11685159]
[1726517731315,11.96469639,2288.0,2287.9,0.0068665]
[1726517731316,19.33531639,2288.0,2287.9,0.0068665]
[1726517731614,23.1301542,2288.0,2287.9,0.0068665]
[1726517732005,23.12985914,2288.0,2287.9,0.0068665]
[1726517732390,20.85349875,2288.0,2287.9,0.0068665]
[1726517734717,23.84349875,2288.0,2287.9,0.0068665]
[1726517735079,16.58877875,2288.0,2287.9,0.0068665]
[1726517735283,12.18124425,2288.0,2287.9,0.0068665]
[1726517735594,8.72586238,2288.0,2287.9,0.11677535]
[1726517736284,8.72586238,2288.0,2287.9,0.0068665]
[1726517736896,7.36062,2288.0,2287.9,0.0068665]
[1726517737091,13.09610774,2288.0,2287.9,0.0068665]
[1726517737293,7.36062,2288.0,2287.9,0.0068665]
[1726517737622,8.72548699,2288.0,2287.9,0.0068665]
[1726517737920,2.99,2288.0,2287.9,0.0068665]
[1726517738216,2.99,2288.0,2287.9,0.11702035]
[1726517739784,7.36062,2288.0,2287.9,0.11702035]
[1726517740586,4.37062,2288.0,2287.9,0.11702035]
[1726517741646,1.36486699,2288.1,2287.9,0.11702035]
[1726517741786,2.27480933,2288.3,2288.1,4.37032]
[1726517741787,1.36486699,2288.3,2288.1,4.37032]
[1726517741983,1.82062425,2288.4,2288.3,2.9394]
[1726517741984,1.36486699,2288.4,2288.3,2.9394]
[1726517742226,8.76486699,2288.6,2288.3,7.30945]
[1726517742397,4.36976,2288.5,2288.3,3.04901959]
[1726517744419,4.36976,2288.5,2288.3,2.9394]
[1726517744936,4.36976,2288.5,2288.4,0.1095051]
[1726517747311,4.36976,2288.5,2288.3,2.9394]
[1726517747521,4.36986,2288.4,2288.3,2.9394]
[1726517747720,8.73955,2288.5,2288.3,2.9394]
[1726517748050,4.36976,2288.5,2288.3,2.9394]
[1726517748249,8.73956,2288.5,2288.3,2.9394]
[1726517748770,4.36976,2288.5,2288.3,2.9394]
[1726517749246,8.73955,2288.5,2288.3,2.9394]
[1726517749945,4.36976,2288.5,2288.3,2.9394]
[1726517752020,1.36486699,2288.6,2288.1,2.7464]
[1726517752335,4.36993,2288.4,2288.1,2.7464]
[1726517752535,4.37013,2288.3,2288.1,2.7464]
[1726517752742,4.37033,2288.2,2287.9,2.7532665]
[1726517752937,4.37046,2288.1,2287.9,2.7532665]
[1726517754052,1.36486699,2288.3,2288.0,4.37054]
[1726517754344,4.37,2288.4,2288.1,2.7464]
[1726517754553,5.73486699,2288.4,2288.2,0.10918427]
[1726517754708,10.10486699,2288.4,2288.2,0.10918427]
[1726517755129,5.73491699,2288.3,2288.2,0.10918427]
[1726517755355,4.37034,2288.2,2287.9,2.7532665]
[1726517755666,4.37034,2288.2,2288.0,0.10936975]
[1726517755999,1.36486699,2288.4,2288.1,2.7464]
[1726517756128,1.36486699,2288.4,2288.1,7.22599523]
[1726517756329,5.73470699,2288.5,2288.1,7.22599523]
[1726517756529,5.73470699,2288.5,2288.1,7.11674]
[1726517756730,5.73470699,2288.5,2288.2,0.10914073]
[1726517757636,5.73470699,2288.5,2288.1,7.11674]
[1726517758372,4.36994,2288.4,2288.1,2.7464]
[1726517758669,4.37005,2288.3,2288.2,0.10917339]
[1726517759344,5.73491699,2288.3,2288.2,0.10917339]
[1726517759546,10.10496699,2288.3,2288.2,0.10917339]
[1726517759727,4.37058,2288.1,2287.9,0.0068665]
[1726517760077,4.37062,2288.0,2287.9,0.0068665]
[1726517760934,11.46744,2288.0,2287.9,0.0068665]
[1726517761133,10.10528918,2288.0,2287.9,0.0068665]
[1726517761327,5.73466918,2288.0,2287.9,0.0068665]
[1726517761527,4.37062,2288.0,2287.9,0.0068665]
[1726517762789,10.1581831,2288.0,2287.9,0.0068665]
[1726517762996,14.97880735,2288.0,2287.9,0.0068665]
[1726517763150,17.69900735,2288.0,2287.9,0.0068665]
[1726517763964,20.68900735,2288.0,2287.9,0.0068665]
[1726517766492,25.05962735,2288.0,2287.9,0.0068665]
[1726517766894,20.68900735,2288.0,2287.9,0.0068665]
[1726517769292,17.51161372,2288.0,2287.9,0.0068665]
[1726517770000,17.51161372,2288.0,2287.9,0.11665016]
[1726517770402,17.51161372,2288.0,2287.9,0.0068665]
[1726517771592,17.51161372,2288.0,2287.9,0.11665016]
[1726517772192,17.51161372,2288.0,2287.9,0.0068665]
[1726517772503,17.96880735,2288.0,2287.9,0.0068665]
[1726517772664,25.28582735,2288.0,2287.9,0.0068665]
[1726517773410,23.4652031,2288.0,2287.9,0.0068665]
[1726517773905,25.28311722,2288.0,2287.9,0.0068665]
[1726517774100,26.28758304,2288.0,2287.9,0.0068665]
[1726517774311,24.0152031,2288.0,2287.9,0.0068665]
[1726517774492,31.11267903,2288.0,2287.9,0.0068665]
[1726517775004,28.3858231,2288.0,2287.9,0.0068665]
[1726517776291,31.11209605,2288.0,2287.9,0.0068665]
[1726517777005,13.1481831,2288.0,2287.9,0.0068665]
[1726517777210,19.33679627,2288.0,2287.9,0.0068665]
[1726517777509,19.79131868,2288.0,2287.9,0.0068665]
[1726517777668,17.5188031,2288.0,2287.9,0.0068665]
[1726517777873,20.3877031,2288.0,2287.9,0.0068665]
[1726517778377,23.9377031,2288.0,2287.9,0.0068665]
[1726517778577,26.21038674,2288.0,2287.9,0.0068665]
[1726517778784,17.9663905,2288.0,2287.9,0.0068665]
[1726517778999,17.51185269,2288.0,2287.9,0.0068665]
[1726517779914,16.09490959,2288.0,2287.9,0.0068665]
[1726517780111,14.73124,2288.0,2287.9,0.0068665]
[1726517780411,14.73124,2288.0,2287.9,0.11748327]
[1726517780701,10.36062,2288.0,2287.9,0.11748327]
[1726517780902,10.36062,2288.0,2287.9,0.0068665]
[1726517781108,4.37062,2288.0,2287.9,0.0068665]
[1726517781339,8.72394959,2288.2,2287.9,0.0068665]
[1726517781509,8.72394959,2288.2,2288.0,2.6985]
[1726517781811,7.36028,2288.2,2288.1,0.11014811]
[1726517782168,7.36028,2288.2,2288.0,2.6985]
[1726517782801,4.37062,2288.0,2287.9,0.0068665]
[1726517784275,4.37062,2288.0,2287.9,0.11720009]
[1726517784974,4.37062,2288.0,2287.9,0.0068665]
[1726517785183,4.37062,2288.0,2287.9,0.11720009]
[1726517785696,4.37044,2288.1,2287.9,0.11720009]
[1726517786529,8.74124,2288.0,2287.9,0.11720009]
[1726517786727,4.37062,2288.0,2287.9,0.11720009]
[1726517786883,4.37062,2288.0,2287.9,0.0068665]
[1726517787083,8.74124,2288.0,2287.9,0.0068665]
[1726517787337,8.74124,2288.0,2287.9,0.11719464]
[1726517787535,10.18875796,2288.0,2287.9,0.11719464]
[1726517787683,11.55242755,2288.0,2287.9,0.11719464]
[1726517787884,11.55242755,2288.0,2287.9,0.0068665]
[1726517788991,14.27262755,2288.0,2287.9,0.11676989]
[1726517789312,26.59322564,2288.0,2287.9,0.0068665]
[1726517789516,24.77501824,2288.0,2287.9,0.0068665]
[1726517789688,27.04770188,2288.0,2287.9,0.0068665]
[1726517790123,29.14563824,2288.0,2287.9,0.0068665]
[1726517790629,8.74354,2287.4,2287.3,0.28]
[1726517790834,7.37177,2287.4,2287.3,0.28]
[1726517791125,4.37177,2287.4,2287.3,3.13]
[1726517791331,4.37177,2287.4,2287.3,3.24059075]
[1726517791886,4.37162,2287.5,2287.3,3.24059075]
[1726517792134,1.36459054,2287.6,2287.3,3.56846634]
[1726517792135,4.37141,2287.6,2287.3,3.56846634]
[1726517792422,8.74274,2287.7,2287.3,3.56846634]
[1726517792652,4.3714,2287.6,2287.3,3.56846634]
[1726517793157,4.37159,2287.5,2287.3,3.24059075]
[1726517793655,4.37141,2287.6,2287.3,3.24059075]
[1726517796318,4.3713,2287.7,2287.3,8.37756935]
[1726517796519,5.73553054,2287.9,2287.5,2.9304]
[1726517796820,10.10646054,2287.9,2287.6,0.11024702]
[1726517797724,4.37102,2287.8,2287.6,0.11024702]
[1726517798061,5.73552054,2287.9,2287.6,0.11024702]
[1726517798759,5.73552054,2287.9,2287.7,6.75984028]
[1726517798760,1.36459054,2287.9,2287.7,6.75984028]
[1726517798931,1.36459054,2288.2,2288.0,4.37062]
[1726517799133,1.36459054,2288.3,2288.1,3.251462]
[1726517799453,1.36459054,2288.4,2288.1,2.92439562]
[1726517799660,5.73445054,2288.4,2288.1,2.92439562]
[1726517799818,5.73445054,2288.4,2288.1,7.29481562]
[1726517799819,1.36459054,2288.4,2288.1,7.29481562]
[1726517801378,5.73448054,2288.4,2288.1,2.92439562]
[1726517801740,4.37006,2288.3,2288.1,2.92439562]
[1726517802037,4.37024,2288.2,2288.1,2.92439562]
[1726517804078,5.73465054,2288.3,2288.1,2.92439562]
[1726517804237,10.10484054,2288.3,2288.1,2.92439562]
[1726517805759,5.73465054,2288.3,2288.1,2.92439562]
[1726517806078,10.10484054,2288.3,2288.1,2.92439562]
[1726517806285,5.73465054,2288.3,2288.1,2.92439562]
[1726517806468,8.72436054,2288.5,2288.1,8.02419318]
[1726517807582,13.09412054,2288.5,2288.1,8.02419318]
[1726517807747,8.72435054,2288.5,2288.1,8.02419318]
[1726517808597,5.73435054,2288.5,2288.1,8.02419318]
[1726517808774,5.73435054,2288.5,2288.1,7.91419756]
[1726517809084,5.73435054,2288.5,2288.2,0.10254421]
[1726517809401,4.36995,2288.4,2288.2,0.10254421]
[1726517810262,8.7401,2288.3,2288.2,0.10254421]
[1726517810445,10.10469054,2288.3,2288.2,0.10254421]
[1726517810648,4.37052,2288.1,2287.9,2.8729]
[1726517810993,4.37052,2288.1,2288.0,0.1021907]
[1726517812959,12.83883602,2288.1,2288.0,0.1021907]
[1726517813262,12.83883602,2288.1,2287.6,7.34706]
[1726517813263,4.3707,2288.0,2287.6,7.34706]
[1726517813866,8.7415,2288.0,2287.6,7.34706]
[1726517814389,5.73623602,2288.1,2287.7,4.47386203]
[1726517814854,4.37051,2288.1,2287.8,2.9173]
[1726517815257,4.37051,2288.1,2287.9,0.10256106]
[1726517815970,1.36572602,2288.1,2287.9,0.10256106]
[1726517816289,4.37044,2288.1,2287.9,0.10256106]
[1726517817890,4.37044,2288.1,2287.9,0.10120148]
[1726517819954,4.37027,2288.2,2287.9,0.10120148]
[1726517820154,1.36572602,2288.3,2287.9,0.10120148]
[1726517820395,1.36572602,2288.4,2288.0,2.8783]
[1726517820594,1.36572602,2288.5,2288.3,4.37005]
[1726517820799,2.99,2288.6,2288.4,2.8783]
[1726517820998,7.35952,2288.6,2288.4,2.9803575]
[1726517821364,4.36967,2288.5,2288.4,2.9803575]
[1726517821562,4.36967,2288.5,2288.4,0.1020575]
[1726517821793,12.33650303,2288.5,2288.4,0.1020575]
[1726517822096,4.37016,2288.3,2287.8,7.22513]
[1726517822299,9.87660511,2288.3,2287.8,11.59603]
[1726517822496,4.37025,2288.2,2287.8,7.2251]
[1726517822924,5.50637511,2288.3,2287.8,2.8542]
[1726517822925,4.37051,2288.1,2287.8,2.8542]
[1726517823079,4.37082,2287.9,2287.8,2.8542]
[1726517823384,4.37082,2287.9,2287.6,2.9718]
[1726517824883,4.37066,2288.0,2287.6,7.34319]
[1726517825474,4.37066,2288.0,2287.7,0.10292987]
[1726517825670,4.37066,2288.0,2287.6,7.34319]
[1726517825912,4.37066,2288.0,2287.8,0.10281533]
[1726517826079,4.37066,2288.0,2287.6,7.34319]
[1726517826281,4.37066,2288.0,2287.9,0.10270079]
[1726517826476,4.37066,2288.0,2287.6,7.34319]
[1726517826676,4.37066,2288.0,2287.9,0.10270079]
[1726517826888,4.37066,2288.0,2287.6,7.34319]
[1726517827093,4.37066,2288.0,2287.9,0.10270079]
[1726517827420,4.37066,2288.0,2287.6,7.34319]